bitfinex/quotes_BTCUSD_20250519
["timestamp","ask_amount","ask_price","bid_price","bid_amount"]
[1747616876959,0.22850412,105030.0,105020.0,0.32783664]
[1747616877154,0.22864904,105030.0,105020.0,0.65831501]
[1747616877388,0.22864904,105030.0,105020.0,0.67372851]
[1747616877585,0.20960841,105030.0,105020.0,0.44520118]
[1747616877792,0.20960841,105030.0,105020.0,0.64516308]
[1747616878002,0.20960841,105030.0,105020.0,0.65468498]
[1747616878308,0.21912949,105030.0,105020.0,0.66420679]
[1747616878517,0.21912949,105030.0,105020.0,0.65468498]
[1747616878724,0.20960868,105030.0,105020.0,0.44520118]
[1747616878936,0.20008778,105030.0,105020.0,0.44620118]
[1747616879162,0.20008778,105030.0,105020.0,0.34889178]
[1747616879742,0.20008778,105030.0,105020.0,0.34789178]
[1747616881451,0.1905667,105030.0,105020.0,0.53833169]
[1747616881645,0.20960778,105030.0,105020.0,0.65468489]
[1747616881848,0.21912832,105030.0,105020.0,0.44520118]
[1747616882076,0.21912832,105030.0,105020.0,0.34789178]
[1747616882077,0.2096085,105030.0,105020.0,0.34789178]
[1747616882287,0.2416085,105030.0,105020.0,0.34789178]
[1747616882491,0.2096085,105030.0,105020.0,0.34789178]
[1747616883525,0.2706085,105030.0,105020.0,0.00789178]
[1747616883724,0.2706085,105030.0,105020.0,0.01771766]
[1747616884178,0.3679179,105030.0,105020.0,0.01771766]
[1747616884581,0.2706085,105030.0,105020.0,0.01771766]
[1747616885013,0.21912904,105030.0,105020.0,0.46454896]
[1747616885226,0.20960805,105030.0,105020.0,0.67403222]
[1747616885435,0.20960841,105030.0,105020.0,0.45502706]
[1747616885637,0.2000876,105030.0,105020.0,0.45502706]
[1747616886658,0.21912922,105030.0,105020.0,0.45502706]
[1747616886861,0.21912922,105030.0,105020.0,0.46454905]
[1747616887064,0.21912922,105030.0,105020.0,0.45502706]
[1747616887590,0.20638012,105030.0,105020.0,0.45502706]
[1747616888282,0.00966528,105030.0,105020.0,0.67403186]
[1747616888467,0.00966537,105030.0,105020.0,0.75097271]
[1747616888667,0.00014492,105030.0,105020.0,0.75097271]
[1747616889247,0.00014492,105030.0,105020.0,0.77759152]
[1747616890039,0.03807872,105040.0,105030.0,0.57352479]
[1747616890243,0.27955637,105050.0,105040.0,0.54944337]
[1747616890524,0.46994262,105050.0,105040.0,0.63723314]
[1747616890819,0.21894262,105050.0,105040.0,0.63723314]
[1747616891021,0.01903737,105050.0,105040.0,0.63723314]
[1747616891226,0.01903737,105050.0,105040.0,0.6562725]
[1747616891370,0.01903737,105050.0,105040.0,0.67081335]
[1747616891579,0.41104,105060.0,105040.0,0.65177344]
[1747616891800,0.22089995,105070.0,105060.0,0.54940386]
[1747616892002,0.20201152,105070.0,105060.0,0.4373094]
[1747616892821,0.20201152,105070.0,105060.0,0.44320118]
[1747616893443,0.22104608,105070.0,105060.0,0.45271955]
[1747616893641,0.03069616,105070.0,105060.0,0.66212286]
[1747616893924,0.21152862,105070.0,105060.0,0.44320118]
[1747616894309,0.21152862,105070.0,105060.0,0.4571422]
[1747616894515,0.21152862,105070.0,105060.0,0.46704176]
[1747616895576,0.21152862,105070.0,105060.0,0.66692734]
[1747616895780,0.21152862,105070.0,105060.0,0.46704176]
[1747616896166,0.00214486,105070.0,105060.0,0.70050401]
[1747616896594,0.00214486,105070.0,105060.0,0.76140401]
[1747616896949,0.00214486,105070.0,105060.0,0.78801595]
[1747616897371,0.19249415,105070.0,105060.0,0.77849822]
[1747616897572,0.02117842,105070.0,105060.0,0.69060445]
[1747616897775,0.03069552,105070.0,105060.0,0.69060454]
[1747616898012,0.03069552,105070.0,105060.0,0.70012227]
[1747616898332,0.02117842,105070.0,105060.0,0.70012227]
[1747616898739,0.03069543,105070.0,105060.0,0.70012227]
[1747616899006,0.02117842,105070.0,105060.0,0.70012227]
[1747616899233,0.03069543,105070.0,105060.0,0.70012227]
[1747616899649,0.23056273,105070.0,105060.0,0.13168305]
[1747616899875,0.2115288,105070.0,105060.0,0.1171422]
[1747616900084,0.2125288,105070.0,105060.0,0.1181422]
[1747616900296,0.2125288,105070.0,105060.0,0.15569671]
[1747616900708,0.2441288,105070.0,105060.0,0.15569671]
[1747616901791,0.2441288,105070.0,105060.0,0.49569671]
[1747616901967,0.2441288,105070.0,105060.0,0.39838731]
[1747616902167,0.2748288,105070.0,105060.0,0.04444629]
[1747616902376,0.2748288,105070.0,105060.0,0.00689178]
[1747616903722,0.8690982,105070.0,105060.0,0.00689178]
[1747616904072,1.50169824,105070.0,105060.0,0.00689178]
[1747616904281,1.50169824,105070.0,105060.0,0.001]
[1747616904764,1.2090982,105070.0,105060.0,0.001]
[1747616904904,1.42934384,105070.0,105060.0,0.001]
[1747616905118,1.2120982,105070.0,105060.0,0.001]
[1747616905406,1.42934384,105070.0,105060.0,0.001]
[1747616905818,1.2120982,105070.0,105060.0,0.001]
[1747616906029,0.26854337,105040.0,105030.0,0.00741946]
[1747616906231,0.51946337,105040.0,105030.0,0.00741946]
[1747616907101,0.51946337,105040.0,105020.0,0.002]
[1747616907102,0.26034268,105030.0,105020.0,0.002]
[1747616908890,0.26034268,105030.0,105020.0,0.03779206]
[1747616909092,0.26034268,105030.0,105020.0,0.004]
[1747616909446,0.26034268,105030.0,105020.0,0.002]
[1747616909716,0.26134268,105030.0,105020.0,0.002]
[1747616909922,0.26134268,105030.0,105020.0,0.0089347]
[1747616910057,0.26034268,105030.0,105020.0,0.0089347]
[1747616910398,0.26134268,105030.0,105020.0,0.0089347]
[1747616911078,0.35865208,105030.0,105020.0,0.0089347]
[1747616911513,0.35865208,105030.0,105020.0,0.003]
[1747616912363,0.84601208,105030.0,105020.0,0.003]
[1747616913235,0.84611208,105030.0,105020.0,0.003]
[1747616917623,0.84611208,105030.0,105020.0,0.0028519]
[1747616918036,0.84323208,105030.0,105020.0,0.0028519]
[1747616918630,0.74592268,105030.0,105020.0,0.0028519]
[1747616918837,0.68524268,105030.0,105020.0,0.0028519]
[1747616919086,0.23324268,105030.0,105020.0,0.0028519]
[1747616919406,0.50778268,105030.0,105020.0,0.0028519]
[1747616920022,0.44488268,105030.0,105020.0,0.0028519]
[1747616920579,0.20104268,105030.0,105020.0,0.0028519]
[1747616920775,0.44488268,105030.0,105020.0,0.0028519]
[1747616921382,0.47398268,105030.0,105020.0,0.0028519]
[1747616921585,0.44488268,105030.0,105020.0,0.0028519]
[1747616923636,0.21056349,105030.0,105020.0,0.3001232]
[1747616923843,0.21056376,105030.0,105020.0,0.1001613]
[1747616924552,0.21056376,105030.0,105020.0,0.10206549]
[1747616925120,0.21056376,105030.0,105020.0,0.2925054]
[1747616925330,0.2200843,105030.0,105020.0,0.1001613]
[1747616925538,0.2200843,105030.0,105020.0,0.10206549]
[1747616925741,0.2200843,105030.0,105020.0,0.13417448]
[1747616925979,0.0011,105030.0,105020.0,0.76862031]
[1747616926203,0.02966162,105030.0,105020.0,0.76671612]
[1747616926389,0.22960439,105030.0,105020.0,0.76671621]
[1747616926603,0.22960439,105030.0,105020.0,0.77264383]
[1747616926859,0.22008412,105030.0,105020.0,0.72290048]
[1747616927028,0.21056358,105030.0,105020.0,0.49273867]
[1747616927402,0.21056358,105030.0,105020.0,0.51178256]
[1747616927927,0.20104277,105030.0,105020.0,0.49273867]
[1747616928278,0.19152178,105030.0,105020.0,0.47819782]
[1747616929086,0.19152178,105030.0,105020.0,0.48561728]
[1747616929287,0.19152178,105030.0,105020.0,0.49513918]
[1747616929513,0.20104268,105030.0,105020.0,0.48561728]
[1747616929926,0.20104268,105030.0,105020.0,0.6951009]
[1747616929927,0.21056277,105030.0,105020.0,0.6951009]
[1747616930128,0.22960448,105030.0,105020.0,0.6951009]
[1747616930335,0.02014099,105030.0,105020.0,0.71916338]
[1747616930726,0.22008367,105030.0,105020.0,0.77956338]
[1747616930936,0.22960475,105030.0,105020.0,0.73894175]
[1747616931141,0.22960475,105030.0,105020.0,0.74846329]
[1747616931296,0.0296618,105030.0,105020.0,0.74846329]
[1747616931498,0.0296618,105030.0,105020.0,0.7675061]
[1747616931676,0.22008358,105030.0,105020.0,0.73894175]
[1747616931876,0.22960457,105030.0,105020.0,0.73894175]
[1747616932201,0.03918279,105030.0,105020.0,0.75798492]
[1747616932408,0.03918279,105030.0,105020.0,0.74846338]
[1747616932614,0.03918279,105030.0,105020.0,0.76787777]
[1747616932999,0.0296618,105030.0,105020.0,0.76787777]
[1747616933193,0.0391827,105030.0,105020.0,0.76787777]
[1747616933783,0.0011,105030.0,105020.0,0.76787777]
[1747616933983,0.0011,105030.0,105020.0,0.79997777]
[1747616935462,0.02014081,105030.0,105020.0,0.79997777]
[1747616935657,0.02014072,105030.0,105020.0,0.79997777]
[1747616935857,0.02014063,105030.0,105020.0,0.78266528]
[1747616936412,0.02966126,105030.0,105020.0,0.78266528]
[1747616936856,0.21056331,105030.0,105020.0,0.47819782]
[1747616937090,0.27296331,105030.0,105020.0,0.00877943]
[1747616937286,0.58503771,105030.0,105020.0,0.00877943]
[1747616937417,0.80228335,105030.0,105020.0,0.00877943]
[1747616937640,0.68210907,105030.0,105020.0,0.00877943]
[1747616937861,0.68210907,105030.0,105020.0,0.0028519]
[1747616938265,0.89935471,105030.0,105020.0,0.0028519]
[1747616938463,0.68210907,105030.0,105020.0,0.0028519]
[1747616938870,0.89935471,105030.0,105020.0,0.0028519]
[1747616939081,0.89935471,105030.0,105020.0,0.0018519]
[1747616939460,0.90035471,105030.0,105020.0,0.0018519]
[1747616940058,1.23959275,105030.0,105020.0,0.0018519]
[1747616940258,0.97623773,105030.0,105020.0,0.0018519]
[1747616940463,1.19548337,105030.0,105020.0,0.0028519]
[1747616940665,1.41272901,105030.0,105020.0,0.0028519]
[1747616940922,1.44786332,105030.0,105020.0,0.0028519]
[1747616941129,0.20950321,105010.0,105000.0,0.002]
[1747616941244,1.22519825,105010.0,105000.0,0.002]
[1747616941448,1.00795261,105010.0,105000.0,0.002]
[1747616941648,1.22519825,105010.0,105000.0,0.002]
[1747616942067,2.26359825,105010.0,105000.0,0.002]
[1747616942481,2.2781391,105010.0,105000.0,0.002]
[1747616942693,2.2801391,105010.0,105000.0,0.002]
[1747616944155,0.20954312,104990.0,104980.0,0.002]
[1747616944370,0.82005816,104990.0,104980.0,0.002]
[1747616944602,1.05065816,104990.0,104980.0,0.002]
[1747616945469,1.05070639,104990.0,104980.0,0.002]
[1747616945684,1.39070639,104990.0,104980.0,0.002]
[1747616946138,1.39170639,104990.0,104980.0,0.002]
[1747616947241,1.39070639,104990.0,104980.0,0.002]
[1747616947459,1.39270639,104990.0,104980.0,0.002]
[1747616947666,1.39370639,104990.0,104980.0,0.002]
[1747616947878,1.39170639,104990.0,104980.0,0.002]
[1747616948112,1.39070639,104990.0,104980.0,0.002]
[1747616948333,1.40070639,104990.0,104980.0,0.002]
[1747616948995,1.18346075,104990.0,104980.0,0.002]
[1747616949236,0.26838303,104970.0,104960.0,0.002]
[1747616949452,1.21150371,104970.0,104960.0,0.002]
[1747616949665,1.67226371,104970.0,104960.0,0.002]
[1747616949880,0.20966293,104930.0,104920.0,0.06541618]
[1747616950081,0.01905904,104930.0,104920.0,0.41175701]
[1747616950304,0.00952843,104940.0,104930.0,0.2502919]
[1747616950522,0.2116228,104950.0,104940.0,0.20011425]
[1747616950736,0.21162334,104950.0,104940.0,0.0392545]
[1747616951167,0.21162334,104950.0,104940.0,0.03973805]
[1747616952065,0.21262334,104950.0,104940.0,0.03973805]
[1747616952290,0.21262334,104950.0,104940.0,0.04173805]
[1747616952868,0.21162334,104950.0,104940.0,0.04173805]
[1747616953634,0.20209527,104950.0,104940.0,0.04173805]
[1747616955124,0.20209527,104950.0,104940.0,0.0512673]
[1747616955327,0.21162298,104950.0,104940.0,0.35059661]
[1747616955536,0.21162298,104950.0,104940.0,0.38851993]
[1747616955740,0.21162298,104950.0,104940.0,0.1788767]
[1747616955941,0.19256693,104950.0,104940.0,0.13904745]
[1747616957415,0.19256693,104950.0,104940.0,0.04173805]
[1747616958823,0.19256693,104950.0,104940.0,0.01304065]
[1747616959673,0.19256693,104950.0,104940.0,0.00248355]
[1747616962069,0.47399466,104950.0,104940.0,0.00248355]
[1747616962279,0.81161257,104950.0,104940.0,0.00248355]
[1747616962510,0.90892197,104950.0,104940.0,0.00248355]
[1747616963142,0.90892197,104950.0,104940.0,0.00048355]
[1747616963690,0.90792197,104950.0,104940.0,0.00048355]
[1747616964169,0.90892197,104950.0,104940.0,0.00048355]
[1747616964389,0.69167633,104950.0,104940.0,0.00048355]
[1747616964612,0.69067633,104950.0,104940.0,0.00048355]
[1747616965049,0.59836693,104950.0,104940.0,0.00048355]
[1747616965287,0.42636693,104950.0,104940.0,0.00048355]
[1747616966624,0.20011434,104940.0,104920.0,0.28042036]
[1747616966858,0.21919264,104930.0,104920.0,0.37335504]
[1747616967086,0.20966312,104930.0,104920.0,0.09745432]
[1747616968197,0.20013323,104930.0,104920.0,0.00014492]
[1747616968598,0.20013323,104930.0,104920.0,0.00214492]
[1747616970132,0.20113323,104930.0,104920.0,0.00214492]
[1747616971612,0.20113323,104930.0,104920.0,0.01553984]
[1747616971821,0.20113323,104930.0,104920.0,0.03810255]
[1747616972265,1.11995887,104930.0,104920.0,0.01553984]
[1747616972909,1.11895887,104930.0,104920.0,0.01553984]
[1747616973197,0.90171323,104930.0,104920.0,0.01553984]
[1747616973445,0.90171323,104930.0,104920.0,0.00610245]
[1747616973881,0.90271323,104930.0,104920.0,0.00610245]
[1747616974318,0.20974289,104890.0,104880.0,0.03329999]
[1747616974563,0.20974289,104890.0,104880.0,0.49402296]
[1747616974779,0.20020955,104890.0,104880.0,0.49402296]
[1747616975010,0.01906641,104890.0,104880.0,0.71332]
[1747616975217,0.00953307,104890.0,104880.0,0.71332]
[1747616975461,0.01906632,104890.0,104880.0,0.6942516]
[1747616975675,0.22980939,104890.0,104880.0,0.71078594]
[1747616975885,0.22980939,104890.0,104880.0,0.7203201]
[1747616976101,0.22980939,104890.0,104880.0,0.72985416]
[1747616976327,0.03059975,104890.0,104880.0,0.7203201]
[1747616976553,0.04013327,104890.0,104880.0,0.72985416]
[1747616977024,0.04966688,104890.0,104880.0,0.72985416]
[1747616977237,0.03059975,104890.0,104880.0,0.72985416]
[1747616977454,0.04013345,104890.0,104880.0,0.72985416]
[1747616977910,0.03059975,104890.0,104880.0,0.72985416]
[1747616978146,0.22127623,104890.0,104880.0,0.48105757]
[1747616978360,0.22127623,104890.0,104880.0,0.68128621]
[1747616978576,0.22127623,104890.0,104880.0,0.69082064]
[1747616978806,0.22127623,104890.0,104880.0,0.68128621]
[1747616979034,0.21174298,104890.0,104880.0,0.68128621]
[1747616979252,0.21174298,104890.0,104880.0,0.11698211]
[1747616979253,0.25307594,104890.0,104880.0,0.11698211]
[1747616979467,0.25307594,104890.0,104880.0,0.01128036]
[1747616980109,0.71063594,104890.0,104880.0,0.01128036]
[1747616980321,0.92788158,104890.0,104880.0,0.01128036]
[1747616980557,0.92888158,104890.0,104880.0,0.01128036]
[1747616980850,0.71163594,104890.0,104880.0,0.01128036]
[1747616981071,0.42219594,104890.0,104880.0,0.01128036]
[1747616981281,0.42219594,104890.0,104880.0,0.69094693]
[1747616981282,0.002,104890.0,104880.0,0.69094693]
[1747616981498,0.04013372,104890.0,104880.0,0.73038136]
[1747616981742,0.02006641,104890.0,104880.0,0.73291542]
[1747616981965,0.001,104890.0,104880.0,0.74745627]
[1747616982195,0.001,104890.0,104880.0,0.78375627]
[1747616982638,0.001,104890.0,104880.0,0.79375627]
[1747616982915,0.001,104890.0,104880.0,0.82234727]
[1747616983130,0.001,104890.0,104880.0,1.05198727]
[1747616983372,0.001,104890.0,104880.0,1.40948427]
[1747616983600,0.001,104890.0,104880.0,1.30827963]
[1747616983813,0.001,104890.0,104880.0,1.27841763]
[1747616984034,0.001,104890.0,104880.0,1.19788563]
[1747616984472,0.00953043,104920.0,104910.0,0.60227527]
[1747616984720,0.22119263,104930.0,104920.0,0.54015249]
[1747616984968,0.22119263,104930.0,104920.0,0.68059475]
[1747616984969,0.002,104930.0,104920.0,0.68059475]
[1747616985216,0.002,104930.0,104920.0,0.73959475]
[1747616985882,0.01152934,104930.0,104920.0,0.70909475]
[1747616986098,0.04011863,104930.0,104920.0,0.67120842]
[1747616986306,0.04011863,104930.0,104920.0,0.70679861]
[1747616986531,0.03058865,104930.0,104920.0,0.70679861]
[1747616986741,0.02105886,104930.0,104920.0,0.70379861]
[1747616986912,0.02205886,104930.0,104920.0,0.70979861]
[1747616987255,0.04111845,104930.0,104920.0,0.71572697]
[1747616987470,0.05064852,104930.0,104920.0,0.71572706]
[1747616987680,0.003,104930.0,104920.0,0.72525749]
[1747616988469,0.01252943,104930.0,104920.0,0.72525749]
[1747616989223,0.003,104930.0,104920.0,0.72525749]
[1747616989431,0.003,104930.0,104920.0,0.75455749]
[1747616989920,0.003,104930.0,104920.0,0.78355749]
[1747616990119,0.003,104930.0,104920.0,0.8101695]
[1747616990549,0.003,104930.0,104920.0,0.82993551]
[1747616992013,0.21266293,104930.0,104920.0,0.6863813]
[1747616992228,0.03158902,104930.0,104920.0,0.68836121]
[1747616992438,0.02205913,104930.0,104920.0,0.68836121]
[1747616992633,0.02205913,104930.0,104920.0,0.70290206]
[1747616992847,0.02205904,104930.0,104920.0,0.68313605]
[1747616993045,0.01252943,104930.0,104920.0,0.68313605]
[1747616993253,0.003,104930.0,104920.0,0.68313605]
[1747616993459,0.02205895,104930.0,104920.0,0.68313605]
[1747616993664,0.02205877,104930.0,104920.0,0.68313605]
[1747616993865,0.03158847,104930.0,104920.0,0.68313605]
[1747616994080,0.2317217,104930.0,104920.0,0.67360562]
[1747616994288,0.03158829,104930.0,104920.0,0.66859566]
[1747616994494,0.05064779,104930.0,104920.0,0.65906514]
[1747616994926,0.24125158,104930.0,104920.0,0.64953435]
[1747616995132,0.24125158,104930.0,104920.0,0.65906533]
[1747616995340,0.25069318,104930.0,104920.0,0.44938186]
[1747616995538,0.25069318,104930.0,104920.0,0.45891293]
[1747616996096,0.25069318,104930.0,104920.0,0.46844391]
[1747616996297,0.25069318,104930.0,104920.0,0.44938186]
[1747616996478,0.25069318,104930.0,104920.0,0.45891293]
[1747616996825,0.20313277,104930.0,104920.0,0.66859566]
[1747616997002,0.21266247,104930.0,104920.0,0.66859593]
[1747616997409,0.23172243,104930.0,104920.0,0.45891293]
[1747616997618,0.23172243,104930.0,104920.0,0.46844391]
[1747616997819,0.20313277,104930.0,104920.0,0.65906533]
[1747616998073,0.21266256,104930.0,104920.0,0.69266776]
[1747616998202,0.003,104930.0,104920.0,0.69266776]
[1747616998407,0.01252943,104930.0,104920.0,0.70219819]
[1747616998624,0.003,104930.0,104920.0,0.70219764]
[1747616998824,0.0031,104930.0,104920.0,0.70219764]
[1747616999229,0.01262934,104930.0,104920.0,0.70219764]
[1747617000455,0.02215877,104930.0,104920.0,0.70219764]
[1747617000897,0.0031,104930.0,104920.0,0.70219764]
[1747617001231,0.01262934,104930.0,104920.0,0.70219764]
[1747617001429,0.01262934,104930.0,104920.0,0.6831366]
[1747617001699,0.0031,104930.0,104920.0,0.69266703]
[1747617002098,0.0031,104930.0,104920.0,0.72446703]
[1747617002541,0.0031,104930.0,104920.0,0.75446703]
[1747617003656,0.0031,104930.0,104920.0,0.72446703]
[1747617003858,0.01262934,104930.0,104920.0,0.65454413]
[1747617004058,0.01262934,104930.0,104920.0,0.68313624]
[1747617004430,0.23182197,104930.0,104920.0,0.46392271]
[1747617004632,0.23182188,104930.0,104920.0,0.67360581]
[1747617004874,0.22229181,104930.0,104920.0,0.69266712]
[1747617005051,0.21276211,104930.0,104920.0,0.71207156]
[1747617005254,0.02215886,104930.0,104920.0,0.71207156]
[1747617005450,0.02215877,104930.0,104920.0,0.71207156]
[1747617005663,0.01262943,104930.0,104920.0,0.71207156]
[1747617005916,0.01262934,104930.0,104920.0,0.71207156]
[1747617006122,0.02215886,104930.0,104920.0,0.71207156]
[1747617006340,0.0031,104930.0,104920.0,0.71207156]
[1747617006549,0.01262934,104930.0,104920.0,0.71207156]
[1747617006714,0.0031,104930.0,104920.0,0.71207156]
[1747617007667,0.0031,104930.0,104920.0,0.77357156]
[1747617008312,0.2127622,104930.0,104920.0,0.68347963]
[1747617008529,0.21276293,104930.0,104920.0,0.47345378]
[1747617008777,0.254393,104930.0,104920.0,0.46392271]
[1747617008980,0.27726238,104930.0,104920.0,0.68313633]
[1747617009158,0.25439227,104930.0,104920.0,0.66407511]
[1747617009410,0.29632234,104930.0,104920.0,0.66407511]
[1747617009608,0.29632234,104930.0,104920.0,0.67360599]
[1747617009748,0.28679227,104930.0,104920.0,0.6831366]
[1747617009950,0.25439236,104930.0,104920.0,0.67360599]
[1747617010159,0.24486238,104930.0,104920.0,0.68313669]
[1747617010360,0.24486238,104930.0,104920.0,0.6926673]
[1747617010583,0.25439227,104930.0,104920.0,0.70219782]
[1747617010802,0.25439227,104930.0,104920.0,0.68313669]
[1747617010953,0.25439227,104930.0,104920.0,0.69266721]
[1747617011153,0.26392234,104930.0,104920.0,0.45891284]
[1747617011372,0.29402225,104930.0,104920.0,0.65906496]
[1747617011582,0.2749633,104930.0,104920.0,0.01207246]
[1747617012008,0.3503177,104930.0,104920.0,0.01207246]
[1747617012655,0.3503177,104930.0,104920.0,0.00907246]
[1747617012858,0.2739633,104930.0,104920.0,0.00607246]
[1747617013063,0.2779633,104930.0,104920.0,0.00707246]
[1747617013262,0.2809633,104930.0,104920.0,0.00707246]
[1747617013639,0.27143341,104930.0,104920.0,0.00707246]
[1747617014002,0.27143341,104930.0,104920.0,0.01699765]
[1747617014130,0.27143341,104930.0,104920.0,0.04298388]
[1747617014329,0.27143341,104930.0,104920.0,0.01699765]
[1747617015967,0.27143341,104930.0,104920.0,0.64492847]
[1747617015968,0.0412,104930.0,104920.0,0.64492847]
[1747617016180,0.0091,104930.0,104920.0,0.68806143]
[1747617016383,0.0091,104930.0,104920.0,0.74335213]
[1747617016589,0.0091,104930.0,104920.0,0.77575213]
[1747617017010,0.0051,104930.0,104920.0,0.77475213]
[1747617017426,0.00952852,104940.0,104930.0,0.23373348]
[1747617017638,0.01905713,104940.0,104930.0,0.33104288]
[1747617018072,0.65400316,104950.0,104940.0,0.53058509]
[1747617018277,0.67305867,104950.0,104940.0,0.4373094]
[1747617018487,0.69313105,104950.0,104940.0,0.4373094]
[1747617018697,0.68360316,104950.0,104940.0,0.44683865]
[1747617018912,0.68360316,104950.0,104940.0,0.45636772]
[1747617019118,0.69313141,104950.0,104940.0,0.46268757]
[1747617019335,0.66453141,104950.0,104940.0,0.46268757]
[1747617019543,0.66453141,104950.0,104940.0,0.45315832]
[1747617019962,0.68660334,104950.0,104940.0,0.46268757]
[1747617020141,0.68660334,104950.0,104940.0,0.45315832]
[1747617020815,0.67707518,104950.0,104940.0,0.01584892]
[1747617021852,0.67707518,104950.0,104940.0,0.00592836]
[1747617023911,1.12983518,104950.0,104940.0,0.00592836]
[1747617024532,1.44500609,104950.0,104940.0,0.00592836]
[1747617025595,0.26111416,104940.0,104930.0,0.00992056]
[1747617025811,0.35842356,104940.0,104930.0,0.00992056]
[1747617026875,0.36242356,104940.0,104930.0,0.01092056]
[1747617027093,0.36242356,104940.0,104930.0,0.001]
[1747617027578,0.58028507,104940.0,104930.0,0.001]
[1747617028248,0.58328507,104940.0,104930.0,0.001]
[1747617028472,0.36542356,104940.0,104930.0,0.001]
[1747617028696,0.36542356,104940.0,104920.0,0.0001441]
[1747617028697,0.26073323,104930.0,104920.0,0.0001441]
[1747617028915,0.57590414,104930.0,104920.0,0.0001441]
[1747617029131,0.35804263,104930.0,104920.0,0.0001441]
[1747617029335,0.57590414,104930.0,104920.0,0.0001441]
[1747617030009,0.57890414,104930.0,104920.0,0.0011441]
[1747617030879,0.58090414,104930.0,104920.0,0.0011441]
[1747617031093,0.36304263,104930.0,104920.0,0.0011441]
[1747617031556,0.58090414,104930.0,104920.0,0.0011441]
[1747617032976,0.2698029,104910.0,104900.0,0.002]
[1747617033237,1.45241381,104910.0,104900.0,0.00842371]
[1747617033467,1.2345523,104910.0,104900.0,0.00842371]
[1747617033702,1.45241381,104910.0,104900.0,0.00842371]
[1747617034263,1.2345523,104910.0,104900.0,0.00842371]
[1747617034749,0.7786723,104910.0,104900.0,0.00248037]
[1747617034950,1.2341923,104910.0,104900.0,0.00248037]
[1747617035384,1.45205381,104910.0,104900.0,0.00248037]
[1747617035620,1.47697263,104910.0,104900.0,0.00248037]
[1747617036093,1.48097263,104910.0,104900.0,0.00348037]
[1747617036307,1.26311112,104910.0,104900.0,0.00348037]
[1747617036522,1.26311112,104910.0,104900.0,0.00276037]
[1747617036721,1.26531112,104910.0,104900.0,0.00276037]
[1747617037172,1.26731112,104910.0,104900.0,0.00276037]
[1747617037396,0.80959112,104910.0,104900.0,0.00276037]
[1747617037616,1.26699112,104910.0,104900.0,0.00276037]
[1747617037841,1.48485263,104910.0,104900.0,0.00276037]
[1747617038913,1.2454723,104910.0,104900.0,0.00276037]
[1747617040231,1.2459523,104910.0,104900.0,0.00276037]
[1747617040486,0.6873629,104910.0,104900.0,0.00276037]
[1747617040696,1.1484429,104910.0,104900.0,0.00276037]
[1747617041566,0.6574629,104910.0,104900.0,0.00276037]
[1747617041843,0.42709152,104910.0,104900.0,0.19341813]
[1747617042075,0.006,104910.0,104900.0,0.76822509]
[1747617042292,0.006,104910.0,104900.0,0.73476594]
[1747617042731,0.006,104910.0,104900.0,0.76335394]
[1747617043183,0.006,104910.0,104900.0,0.76927597]
[1747617043617,0.01353116,104910.0,104900.0,0.76927597]
[1747617043840,0.21921522,104920.0,104910.0,0.56424375]
[1747617044057,0.21921458,104920.0,104910.0,0.71282163]
[1747617044285,0.21921458,104920.0,104910.0,0.50161383]
[1747617044500,0.21921458,104920.0,104910.0,0.69817536]
[1747617044701,0.22874565,104920.0,104910.0,0.71964016]
[1747617044911,0.22874565,104920.0,104910.0,0.71964025]
[1747617045123,0.22974565,104920.0,104910.0,0.71964025]
[1747617045329,0.01353043,104920.0,104910.0,0.73017186]
[1747617045535,0.23274441,104920.0,104910.0,0.73017186]
[1747617045760,0.23274441,104920.0,104910.0,0.72064025]
[1747617045978,0.23274441,104920.0,104910.0,0.73017186]
[1747617046185,0.23274441,104920.0,104910.0,0.72064025]
[1747617046423,0.21368337,104920.0,104910.0,0.51093708]
[1747617046645,0.19462142,104920.0,104910.0,0.46569623]
[1747617048915,0.19462142,104920.0,104910.0,0.44423143]
[1747617050090,0.25792142,104920.0,104910.0,0.00692203]
[1747617050312,0.57309233,104920.0,104910.0,0.00692203]
[1747617051483,0.35523082,104920.0,104910.0,0.001]
[1747617053605,0.25792142,104920.0,104910.0,0.001]
[1747617054653,0.35523082,104920.0,104910.0,0.001]
[1747617059206,0.57309233,104920.0,104910.0,0.001]
[1747617059644,0.35523082,104920.0,104910.0,0.001]
[1747617060558,0.42510142,104920.0,104910.0,0.001]
[1747617060798,0.42510142,104920.0,104910.0,0.20117156]
[1747617060984,0.23448,104920.0,104910.0,0.59083442]
[1747617061235,0.004,104920.0,104910.0,0.71944382]
[1747617061463,0.004,104920.0,104910.0,0.73398467]
[1747617061910,0.01353034,104920.0,104910.0,0.73398467]
[1747617062132,0.03259147,104920.0,104910.0,0.74945403]
[1747617062347,0.02859147,104920.0,104910.0,0.74845403]
[1747617062561,0.03812235,104920.0,104910.0,0.74845403]
[1747617062770,0.03912235,104920.0,104910.0,0.75145403]
[1747617062991,0.02006077,104920.0,104910.0,0.75145403]
[1747617063202,0.02959138,104920.0,104910.0,0.75145403]
[1747617063455,0.03912226,104920.0,104910.0,0.75145403]
[1747617063910,0.22974368,104920.0,104910.0,0.72015421]
[1747617064121,0.04865305,104920.0,104910.0,0.74701874]
[1747617064544,0.21068328,104920.0,104910.0,0.46358043]
[1747617065047,0.2011524,104920.0,104910.0,0.46358043]
[1747617065295,0.4315924,104920.0,104910.0,0.36627103]
[1747617065512,0.2011524,104920.0,104910.0,0.36627103]
[1747617065715,0.4315924,104920.0,104910.0,0.36627103]
[1747617065939,0.4611924,104920.0,104910.0,0.02627103]
[1747617066157,0.4903924,104920.0,104910.0,0.02627103]
[1747617067234,0.4903924,104920.0,104910.0,0.06307417]
[1747617067654,0.4903924,104920.0,104910.0,0.04574098]
[1747617068329,0.4903924,104920.0,104910.0,0.00893784]
[1747617068555,0.5877018,104920.0,104910.0,0.00893784]
[1747617068960,0.80556331,104920.0,104910.0,0.00893784]
[1747617069413,0.5867018,104920.0,104910.0,0.00793784]
[1747617069624,0.5867018,104920.0,104910.0,0.00593784]
[1747617069843,0.5897018,104920.0,104910.0,0.00693784]
[1747617070059,0.5907018,104920.0,104910.0,0.00693784]
[1747617070479,0.80856331,104920.0,104910.0,0.00693784]
[1747617070701,0.5907018,104920.0,104910.0,0.001]
[1747617071118,0.59055336,104920.0,104910.0,0.001]
[1747617073422,1.00215336,104920.0,104910.0,0.001]
[1747617074702,0.64520396,104920.0,104910.0,0.001]
[1747617074948,0.84264396,104920.0,104910.0,0.01053197]
[1747617075157,0.61560396,104920.0,104910.0,0.00694449]
[1747617075367,0.84264396,104920.0,104910.0,0.00694449]
[1747617076301,0.87144396,104920.0,104910.0,0.00694449]
[1747617076525,0.90084396,104920.0,104910.0,0.00694449]
[1747617079252,0.61560396,104920.0,104910.0,0.00694449]
[1747617079449,1.06784396,104920.0,104910.0,0.00694449]